fUST/lending_fUST_20241007
["ID","MTS","AMOUNT","RATE_DAILY","PERIOD"]
[339971107,1728245445580,-681.81,0.00013698,2]
[339971108,1728245445590,-500.0,0.00013698,2]
[339971109,1728245445601,-500.0,0.00013698,2]
[339971110,1728245445613,-500.0,0.00013698,2]
[339971111,1728245445625,-500.0,0.00013698,2]
[339971112,1728245445636,-500.0,0.00013698,2]
[339971113,1728245445647,-500.0,0.00013698,2]
[339971114,1728245445658,-486.0445005,0.00013698,2]
[339971115,1728245445670,-500.0,0.00013698,2]
[339971116,1728245445679,-618.07,0.00013698,2]
[339971118,1728245445690,-150.48160327,0.00013698,2]
[339971119,1728245445701,-905.5,0.00013698,2]
[339971120,1728245445711,-500.0,0.00013698,2]
[339971121,1728245445721,-500.0,0.00013698,2]
[339971122,1728245445731,-500.0,0.00013698,2]
[339971123,1728245445742,-500.0,0.00013698,2]
[339971124,1728245445753,-1004.36,0.00013698,2]
[339971125,1728245445765,-769.79,0.00013698,2]
[339971126,1728245445775,-556.25,0.00013698,2]
[339971127,1728245445784,-500.0,0.00013698,2]
[339971128,1728245445794,-704.99,0.00013698,2]
[339971129,1728245445804,-511.68,0.00013698,2]
[339971130,1728245445815,-500.0,0.00013698,2]
[339971131,1728245445826,-500.0,0.00013698,2]
[339971132,1728245445837,-500.0,0.00013698,2]
[339971133,1728245445847,-500.0,0.00013698,2]
[339971134,1728245445858,-500.0,0.00013698,2]
[339971135,1728245445868,-500.0,0.00013698,2]
[339971136,1728245445877,-500.0,0.00013698,2]
[339971137,1728245445887,-716.88,0.00013698,2]
[339971138,1728245445899,-500.0,0.00013698,2]
[339971139,1728245445909,-500.0,0.00013698,2]
[339971140,1728245445920,-500.0,0.00013698,2]
[339971141,1728245445929,-500.0,0.00013698,2]
[339971142,1728245445939,-500.0,0.00013698,2]
[339971143,1728245445949,-500.0,0.00013698,2]
[339971144,1728245445960,-500.0,0.00013698,2]
[339971145,1728245445970,-500.0,0.00013698,2]
[339971146,1728245445980,-500.0,0.00013698,2]
[339971147,1728245445990,-500.0,0.00013698,2]
[339971148,1728245446001,-502.96,0.00013698,2]
[339971149,1728245446011,-1213.0,0.00013698,2]
[339971150,1728245446021,-500.0,0.00013698,2]
[339971151,1728245446031,-500.0,0.00013698,2]
[339971152,1728245446041,-500.0,0.00013698,2]
[339971153,1728245446051,-637.76493321,0.00013698,2]
[339971154,1728245446061,-500.0,0.00013698,2]
[339971155,1728245446072,-500.0,0.00013698,2]
[339971156,1728245446082,-500.0,0.00013698,2]
[339971157,1728245446092,-500.0,0.00013698,2]
[339971158,1728245446102,-500.0,0.00013698,2]
[339971159,1728245446112,-500.0,0.00013698,2]
[339971160,1728245446123,-500.0,0.00013698,2]
[339971161,1728245446132,-500.0,0.00013698,2]
[339971162,1728245446145,-500.0,0.00013698,2]
[339971163,1728245446154,-500.0,0.00013698,2]
[339971164,1728245446164,-500.0,0.00013698,2]
[339971165,1728245446176,-500.0,0.00013698,2]
[339971166,1728245446186,-500.0,0.00013698,2]
[339971167,1728245446198,-640.83,0.00013698,2]
[339971168,1728245446209,-500.0,0.00013698,2]
[339971169,1728245446220,-799.58,0.00013698,2]
[339971170,1728245446231,-500.0,0.00013698,2]
[339971171,1728245446242,-2198.44,0.00013698,2]
[339971172,1728245446252,-500.0,0.00013698,2]
[339971173,1728245446263,-500.0,0.00013698,2]
[339971174,1728245446273,-500.0,0.00013698,2]
[339971175,1728245446284,-500.0,0.00013698,2]
[339971176,1728245446294,-500.0,0.00013698,2]
[339971177,1728245446306,-701.74,0.00013698,2]
[339971178,1728245446321,-500.0,0.00013698,2]
[339971179,1728245446331,-500.0,0.00013698,2]
[339971180,1728245446344,-500.0,0.00013698,2]
[339971181,1728245446356,-23220.06,0.00013698,2]
[339971182,1728245446368,-513.24,0.00013698,2]
[339971183,1728245446380,-500.0,0.00013698,2]
[339971184,1728245446390,-500.0,0.00013698,2]
[339971185,1728245446401,-648.31421913,0.00013698,2]
[339971186,1728245446412,-500.0,0.00013698,2]
[339971187,1728245446422,-1825.72,0.00013698,2]
[339971188,1728245446434,-500.0,0.00013698,2]
[339971189,1728245446444,-500.0,0.00013698,2]
[339971190,1728245446456,-3809.25,0.00013698,2]
[339971191,1728245446467,-500.0,0.00013698,2]
[339971192,1728245446478,-500.0,0.00013698,2]
[339971193,1728245446489,-689.01,0.00013698,2]
[339971194,1728245446499,-500.0,0.00013698,2]
[339971195,1728245446509,-500.0,0.00013698,2]
[339971196,1728245446520,-1068.37,0.00013698,2]
[339971197,1728245446530,-500.0,0.00013698,2]
[339971198,1728245446542,-500.0,0.00013698,2]
[339971199,1728245446554,-500.0,0.00013698,2]
[339971200,1728245446565,-500.0,0.00013698,2]
[339971201,1728245446575,-500.0,0.00013698,2]
[339971202,1728245446584,-1019.82,0.00013698,2]
[339971203,1728245446594,-1687.94,0.00013698,2]
[339971204,1728245446605,-507.40590071,0.00013698,2]
[339971205,1728245446615,-500.0,0.00013698,2]
[339971206,1728245446625,-500.0,0.00013698,2]
[339971207,1728245446635,-500.0,0.00013698,2]
[339971208,1728245446647,-500.0,0.00013698,2]
[339971209,1728245446658,-611.72,0.00013698,2]
[339971210,1728245446669,-500.0,0.00013698,2]
[339971211,1728245446680,-500.0,0.00013698,2]
[339971212,1728245446691,-410.28787292,0.00013698,2]
[339971213,1728245446700,-500.0,0.00013698,2]
[339971214,1728245446711,-500.0,0.00013698,2]
[339971215,1728245446722,-500.0,0.00013698,2]
[339971216,1728245446734,-500.0,0.00013698,2]
[339971217,1728245446746,-500.0,0.00013698,2]
[339971218,1728245446756,-564.15,0.00013698,2]
[339971219,1728245446767,-500.0,0.00013698,2]
[339971220,1728245446778,-608.82,0.00013698,2]
[339971221,1728245446789,-605.81,0.00013698,2]
[339971222,1728245446800,-500.0,0.00013698,2]
[339971223,1728245446811,-1003.97,0.00013698,2]
[339971224,1728245446820,-500.0,0.00013698,2]
[339971225,1728245446829,-588.23143906,0.00013698,2]
[339971226,1728245446840,-292.89615988,0.00013698,2]
[339971227,1728245446849,-500.0,0.00013698,2]
[339971228,1728245446860,-541.62,0.00013698,2]
[339971229,1728245446870,-500.0,0.00013698,2]
[339971230,1728245446879,-500.0,0.00013698,2]
[339971231,1728245446889,-589.17,0.00013698,2]
[339971232,1728245446899,-500.0,0.00013698,2]
[339971233,1728245446909,-1166.46,0.00013698,2]
[339971234,1728245446920,-500.0,0.00013698,2]
[339971235,1728245446929,-500.0,0.00013698,2]
[339971236,1728245446940,-606.03,0.00013698,2]
[339971237,1728245446951,-500.0,0.00013698,2]
[339971238,1728245446962,-500.0,0.00013698,2]
[339971239,1728245446973,-500.0,0.00013698,2]
[339971240,1728245446982,-578.55,0.00013698,2]
[339971241,1728245446994,-330.79365853,0.00013698,2]
[339971242,1728245447004,-500.0,0.00013698,2]
[339971243,1728245447014,-526.31,0.00013698,2]
[339971244,1728245447024,-500.0,0.00013698,2]
[339971245,1728245447034,-500.0,0.00013698,2]
[339971246,1728245447045,-500.0,0.00013698,2]
[339971247,1728245447057,-500.0,0.00013698,2]
[339971248,1728245447068,-500.0,0.00013698,2]
[339971249,1728245447079,-616.98,0.00013698,2]
[339971250,1728245447089,-500.0,0.00013698,2]
[339971251,1728245447100,-500.0,0.00013698,2]
[339971252,1728245447109,-500.0,0.00013698,2]
[339971253,1728245447119,-615.56003971,0.00013698,2]
[339971254,1728245447129,-500.0,0.00013698,2]
[339971255,1728245447140,-500.0,0.00013698,2]
[339971256,1728245447149,-500.0,0.00013698,2]
[339971257,1728245447159,-500.0,0.00013698,2]
[339971258,1728245447169,-500.0,0.00013698,2]
[339971259,1728245447180,-500.0,0.00013698,2]
[339971260,1728245447189,-500.0,0.00013698,2]
[339971261,1728245447201,-667.06,0.00013698,2]
[339971262,1728245447212,-500.0,0.00013698,2]
[339971263,1728245447221,-500.0,0.00013698,2]
[339971264,1728245447231,-500.0,0.00013698,2]
[339971265,1728245447241,-150.0,0.00013698,2]
[339971266,1728245447250,-500.0,0.00013698,2]
[339971267,1728245447259,-500.0,0.00013698,2]
[339971268,1728245447268,-500.0,0.00013698,2]
[339971269,1728245447278,-500.0,0.00013698,2]
[339971270,1728245447287,-500.0,0.00013698,2]
[339971271,1728245447296,-461.0,0.00013698,2]
[339971272,1728245447306,-500.0,0.00013698,2]
[339971273,1728245447315,-523.28186948,0.00013698,2]
[339971274,1728245447325,-500.0,0.00013698,2]
[339971275,1728245447335,-500.0,0.00013698,2]
[339971276,1728245447344,-500.0,0.00013698,2]
[339971277,1728245447354,-500.0,0.00013698,2]
[339971278,1728245447365,-500.0,0.00013698,2]
[339971279,1728245447376,-500.0,0.00013698,2]
[339971280,1728245447387,-500.0,0.00013698,2]
[339971281,1728245447398,-1854.38,0.00013698,2]
[339971282,1728245447409,-500.0,0.00013698,2]
[339971283,1728245447420,-500.0,0.00013698,2]
[339971284,1728245447431,-500.0,0.00013698,2]
[339971285,1728245447442,-500.0,0.00013698,2]
[339971286,1728245447454,-2983.12,0.00013698,2]
[339971287,1728245447464,-500.0,0.00013698,2]
[339971288,1728245447473,-500.0,0.00013698,2]
[339971289,1728245447483,-500.0,0.00013698,2]
[339971290,1728245447495,-500.0,0.00013698,2]
[339971291,1728245447506,-667.95,0.00013698,2]
[339971292,1728245447516,-500.0,0.00013698,2]
[339971293,1728245447526,-830.07,0.00013698,2]
[339971294,1728245447537,-518.7,0.00013698,2]
[339971295,1728245447547,-500.0,0.00013698,2]
[339971296,1728245447559,-500.0,0.00013698,2]
[339971297,1728245447570,-500.0,0.00013698,2]
[339971298,1728245447745,-500.0,0.00013698,2]
[339971299,1728245447755,-2165.89,0.00013698,2]
[339971300,1728245447767,-446.07073283,0.00013698,2]
[339971301,1728245447778,-500.0,0.00013698,2]
[339971302,1728245447788,-500.0,0.00013698,2]
[339971303,1728245447798,-880.03,0.00013698,2]
[339971304,1728245447807,-3094.43,0.00013698,2]
[339971305,1728245447818,-701.44,0.00013698,2]
[339971306,1728245447828,-500.0,0.00013698,2]
[339971307,1728245447839,-500.0,0.00013698,2]
[339971308,1728245447849,-226.4754402,0.00013698,2]
[339971309,1728245447860,-500.0,0.00013698,2]
[339971310,1728245447870,-1213.43,0.00013698,2]
[339971311,1728245447881,-4696.79,0.00013698,2]
[339971312,1728245447893,-500.0,0.00013698,2]
[339971313,1728245447905,-505.3,0.00013698,2]
[339971314,1728245447918,-607.93702402,0.00013698,2]
[339971315,1728245447928,-500.0,0.00013698,2]
[339971316,1728245447938,-500.0,0.00013698,2]
[339971317,1728245447949,-507.4,0.00013698,2]
[339971318,1728245447959,-500.0,0.00013698,2]
[339971319,1728245447969,-500.0,0.00013698,2]
[339971320,1728245447978,-500.0,0.00013698,2]
[339971321,1728245447987,-500.0,0.00013698,2]
[339971322,1728245447996,-500.0,0.00013698,2]
[339971323,1728245448006,-591.80675719,0.00013698,2]
[339971324,1728245448015,-500.0,0.00013698,2]
[339971325,1728245448024,-500.0,0.00013698,2]
[339971326,1728245448033,-617.35,0.00013698,2]
[339971327,1728245448043,-500.0,0.00013699,2]
[339971328,1728245448054,-500.0,0.00013699,2]
[339971329,1728245448065,-11735.4701161,0.00013699,2]
[339971330,1728245448080,-15170.489139,0.00013699,2]
[339971331,1728245448092,-1929.7807347,0.00013699,2]
[339971332,1728245448104,-166.666666,0.00013699,2]
[339971333,1728245448114,-3507.999414,0.00013699,2]
[339971334,1728245448124,-13289.2969274,0.00013699,2]
[339971335,1728245448134,-151.0,0.00013699,2]
[339971336,1728245448147,-212.096226,0.00013699,2]
[339971337,1728245448156,-212.096226,0.00013699,2]
[339971338,1728245448166,-13082.05039829,0.000137,2]
[339971339,1728245448176,-2551.45,0.000137,2]
[339971340,1728245448188,-161.552496,0.0001374,2]
[339971341,1728245448197,-152.577357,0.0001374,2]
[339971342,1728245448208,-177.0982,0.0001374,2]
[339971343,1728245448221,-420.0,0.00013743,2]
[339971344,1728245448231,-630.768006,0.00013754,2]
[339971345,1728245448239,-167.913167,0.00013754,2]
[339971346,1728245448248,-1508.815468,0.00013754,2]
[339971347,1728245448258,-8762.95152195,0.00013772,2]
[339971348,1728245448268,-420.0,0.00013779,2]
[339971349,1728245448278,-35278.71478628,0.00013782,2]
[339971350,1728245448290,-14297.29027031,0.00013782,2]
[339971351,1728245448300,-8762.95152195,0.0001379,2]
[339971352,1728245448310,-603.526187,0.00013796,2]
[339971353,1728245448320,-410.722703,0.00013796,2]
[339971354,1728245448331,-205.713762,0.00013796,2]
[339971355,1728245448342,-547.468024,0.00013796,2]
[339971356,1728245448351,-387.829776,0.00013796,2]
[339971357,1728245448362,-163.774884,0.00013796,2]
[339971358,1728245448372,-197.293552,0.00013796,2]
[339971359,1728245448383,-290.409501,0.00013796,2]
[339971360,1728245448393,-1874.63,0.000138,2]
[339971361,1728245448404,-413.0249282,0.000138,2]
[339971362,1728245448420,-413.0249282,0.000138,2]
[339971363,1728245448430,-412.1458022,0.000138,2]
[339971364,1728245448440,-153.0,0.000138,2]
[339971365,1728245448449,-153.0,0.000138,2]
[339971366,1728245448460,-153.0,0.000138,2]
[339971367,1728245448471,-6362.88796321,0.00013859,2]
[339971368,1728245448481,-163.916763,0.000139,2]
[339971369,1728245448491,-413.0249282,0.000139,2]
[339971370,1728245448501,-153.2415716,0.000139,2]
[339971371,1728245448511,-150.112233,0.000139,2]
[339971372,1728245448521,-150.112233,0.000139,2]
[339971373,1728245448531,-150.112233,0.000139,2]
[339971374,1728245448541,-150.112233,0.000139,2]
[339971375,1728245448552,-630.768006,0.00013921,2]
[339971376,1728245448564,-167.913167,0.00013921,2]
[339971377,1728245448573,-1508.815468,0.00013921,2]
[339971378,1728245448583,-863.9455592,0.00013935,2]
[339971379,1728245448594,-8762.95152195,0.00013952,2]
[339971380,1728245448603,-61340.6606537,0.00013962,2]
[339971381,1728245448613,-164.68247,0.00013962,2]
[339971382,1728245448622,-205.361352,0.00013962,2]
[339971383,1728245448633,-182.489342,0.00013962,2]
[339971384,1728245448643,-161.552496,0.00013962,2]
[339971385,1728245448654,-152.577357,0.00013962,2]
[339971386,1728245448665,-177.0982,0.00013962,2]
[339971387,1728245448675,-177.098201,0.00013962,2]
[339971388,1728245448686,-603.526187,0.00013962,2]
[339971389,1728245448695,-410.722703,0.00013962,2]
[339971390,1728245448706,-205.713762,0.00013962,2]
[339971391,1728245448716,-547.468024,0.00013962,2]
[339971392,1728245448726,-387.829776,0.00013962,2]
[339971393,1728245448736,-163.774884,0.00013962,2]
[339971394,1728245448747,-197.293552,0.00013962,2]
[339971395,1728245448757,-290.409501,0.00013962,2]
[339971396,1728245448767,-9945.19630415,0.00013962,2]
[339971397,1728245448778,-2500.0,0.00013963,2]
[339971398,1728245448787,-2500.0,0.00013963,2]
[339971399,1728245448798,-2500.0,0.00013963,2]
[339971400,1728245448807,-160.0,0.00013971,2]
[339971401,1728245448818,-162.18543022,0.00013971,2]
[339971402,1728245448828,-150.0,0.00013972,2]
[339971403,1728245448837,-844.99434867,0.00013972,2]
[339971404,1728245448849,-461.0,0.00013972,2]
[339971405,1728245448860,-500.0,0.00013972,2]
[339971406,1728245448870,-2500.0,0.00013972,2]
[339971407,1728245448880,-2500.0,0.00013972,2]
[339971408,1728245448889,-2500.0,0.00013972,2]
[339971409,1728245448900,-2500.0,0.00013972,2]
[339971410,1728245448911,-212.096226,0.00013972,2]
[339971411,1728245448921,-212.096226,0.00013972,2]
[339971412,1728245448932,-2500.0,0.00013972,2]
[339971413,1728245448941,-304.54991328,0.00013972,2]
[339971414,1728245448951,-500.0,0.00013972,2]
[339971415,1728245448962,-500.0,0.00013972,2]
[339971416,1728245448972,-500.0,0.00013972,2]
[339971417,1728245448982,-500.0,0.00013972,2]
[339971418,1728245448993,-538.21,0.00013972,2]
[339971419,1728245449003,-500.0,0.00013972,2]
[339971420,1728245449013,-500.0,0.00013972,2]
[339971421,1728245449023,-500.0,0.00013972,2]
[339971422,1728245449033,-500.0,0.00013972,2]
[339971423,1728245449043,-500.0,0.00013972,2]
[339971424,1728245449053,-500.0,0.00013972,2]
[339971425,1728245449063,-500.0,0.00013972,2]
[339971426,1728245449072,-690.31,0.00013972,2]
[339971427,1728245449082,-500.0,0.00013972,2]
[339971428,1728245449092,-753.75,0.00013972,2]
[339971429,1728245449101,-500.0,0.00013972,2]
[339971430,1728245449111,-500.0,0.00013972,2]
[339971431,1728245449120,-500.0,0.00013972,2]
[339971432,1728245449130,-550.60933536,0.00013972,2]
[339971433,1728245449141,-500.0,0.00013972,2]
[339971434,1728245449151,-500.0,0.00013972,2]
[339971435,1728245449161,-500.0,0.00013972,2]
[339971436,1728245449172,-500.0,0.00013972,2]
[339971437,1728245449183,-560.51,0.00013972,2]
[339971438,1728245449195,-500.0,0.00013972,2]
[339971439,1728245449206,-693.21,0.00013972,2]
[339971440,1728245449217,-750.67,0.00013972,2]
[339971441,1728245449226,-624.79,0.00013972,2]
[339971442,1728245449237,-500.0,0.00013972,2]
[339971443,1728245449247,-500.0,0.00013972,2]
[339971444,1728245449257,-500.0,0.00013972,2]
[339971445,1728245449268,-500.0,0.00013972,2]
[339971446,1728245449279,-500.0,0.00013972,2]
[339971447,1728245449289,-500.0,0.00013972,2]
[339971448,1728245449299,-500.0,0.00013972,2]
[339971449,1728245449312,-500.0,0.00013972,2]
[339971450,1728245449322,-621.15,0.00013972,2]
[339971451,1728245449333,-573.68,0.00013972,2]
[339971452,1728245449343,-500.0,0.00013972,2]
[339971453,1728245449354,-500.0,0.00013972,2]
[339971454,1728245449364,-500.0,0.00013972,2]
[339971455,1728245449374,-500.0,0.00013972,2]
[339971456,1728245449384,-500.0,0.00013972,2]
[339971457,1728245449395,-500.0,0.00013972,2]
[339971458,1728245449405,-566.65,0.00013972,2]
[339971459,1728245449414,-177.78697335,0.00013972,2]
[339971460,1728245449423,-500.0,0.00013972,2]
[339971461,1728245449433,-500.0,0.00013972,2]
[339971462,1728245449442,-500.0,0.00013972,2]
[339971463,1728245449452,-354.25398205,0.00013972,2]
[339971464,1728245449462,-1154.19,0.00013972,2]
[339971465,1728245449473,-2500.0,0.00013972,2]
[339971466,1728245449484,-500.0,0.00013972,2]
[339971467,1728245449494,-500.0,0.00013972,2]
[339971468,1728245449506,-500.0,0.00013972,2]
[339971469,1728245449516,-500.0,0.00013972,2]
[339971470,1728245449526,-500.0,0.00013972,2]
[339971471,1728245449536,-500.0,0.00013972,2]
[339971472,1728245449547,-511.18,0.00013972,2]
[339971473,1728245449559,-1179.38,0.00013972,2]
[339971474,1728245449569,-500.0,0.00013972,2]
[339971475,1728245449579,-751.93,0.00013972,2]
[339971476,1728245449590,-500.0,0.00013972,2]
[339971477,1728245449602,-500.0,0.00013972,2]
[339971478,1728245449613,-500.0,0.00013972,2]
[339971479,1728245449624,-500.0,0.00013972,2]
[339971480,1728245449634,-500.0,0.00013972,2]
[339971481,1728245449645,-734.54,0.00013972,2]
[339971482,1728245449655,-500.0,0.00013972,2]
[339971483,1728245449668,-230.09251511,0.00013972,2]
[339971484,1728245449679,-492.04792731,0.00013972,2]
[339971485,1728245449690,-500.0,0.00013972,2]
[339971486,1728245449700,-500.0,0.00013972,2]
[339971487,1728245449710,-500.0,0.00013972,2]
[339971488,1728245449720,-500.0,0.00013972,2]
[339971489,1728245449730,-500.0,0.00013972,2]
[339971490,1728245449740,-500.0,0.00013972,2]
[339971491,1728245449751,-500.0,0.00013972,2]
[339971492,1728245449762,-484.90224004,0.00013972,2]
[339971493,1728245449771,-500.0,0.00013972,2]
[339971494,1728245449782,-500.0,0.00013972,2]
[339971495,1728245449792,-782.03,0.00013972,2]
[339971496,1728245449802,-500.0,0.00013972,2]
[339971497,1728245449812,-500.0,0.00013972,2]
[339971498,1728245449823,-500.0,0.00013972,2]
[339971499,1728245449833,-500.0,0.00013972,2]
[339971500,1728245449843,-500.0,0.00013972,2]
[339971501,1728245449853,-500.0,0.00013972,2]
[339971502,1728245449863,-600.57,0.00013972,2]
[339971503,1728245449873,-500.0,0.00013972,2]
[339971504,1728245449883,-1034.12,0.00013972,2]
[339971505,1728245449894,-500.0,0.00013972,2]
[339971506,1728245449904,-500.0,0.00013972,2]
[339971507,1728245449914,-500.0,0.00013972,2]
[339971508,1728245449926,-500.0,0.00013972,2]
[339971509,1728245449937,-500.0,0.00013972,2]
[339971510,1728245449949,-640.14391576,0.00013972,2]
[339971511,1728245449960,-242.62697535,0.00013972,2]
[339971512,1728245449971,-500.0,0.00013972,2]
[339971513,1728245449982,-500.0,0.00013972,2]
[339971514,1728245449992,-500.0,0.00013972,2]
[339971515,1728245450003,-500.0,0.00013972,2]
[339971516,1728245450012,-575.69033828,0.00013972,2]
[339971517,1728245450023,-500.0,0.00013972,2]
[339971518,1728245450035,-500.0,0.00013972,2]
[339971519,1728245450044,-500.0,0.00013972,2]
[339971520,1728245450057,-567.02,0.00013972,2]
[339971521,1728245450068,-500.0,0.00013972,2]
[339971522,1728245450078,-547.51,0.00013972,2]
[339971523,1728245450089,-620.41,0.00013972,2]
[339971524,1728245450098,-500.0,0.00013972,2]
[339971525,1728245450108,-500.0,0.00013972,2]
[339971526,1728245450118,-500.0,0.00013972,2]
[339971527,1728245450128,-500.0,0.00013972,2]
[339971528,1728245450142,-500.0,0.00013972,2]
[339971529,1728245450154,-622.64,0.00013972,2]
[339971530,1728245450163,-500.0,0.00013972,2]
[339971531,1728245450173,-1766.09,0.00013972,2]
[339971532,1728245450184,-1018.45,0.00013972,2]
[339971533,1728245450193,-500.0,0.00013972,2]
[339971534,1728245450203,-500.0,0.00013972,2]
[339971535,1728245450212,-500.0,0.00013972,2]
[339971536,1728245450221,-547.28859939,0.00013972,2]
[339971537,1728245450232,-500.0,0.00013972,2]
[339971538,1728245450241,-500.0,0.00013972,2]
[339971539,1728245450251,-646.49,0.00013972,2]
[339971540,1728245450261,-500.0,0.00013972,2]
[339971541,1728245450271,-500.0,0.00013972,2]
[339971542,1728245450283,-500.0,0.00013972,2]
[339971543,1728245450294,-214.46089664,0.00013972,2]
[339971544,1728245450305,-500.0,0.00013972,2]
[339971545,1728245450315,-500.0,0.00013972,2]
[339971546,1728245450325,-500.0,0.00013972,2]
[339971547,1728245450337,-500.0,0.00013972,2]
[339971548,1728245450347,-548.58,0.00013972,2]
[339971549,1728245450358,-500.0,0.00013972,2]
[339971550,1728245450369,-500.0,0.00013972,2]
[339971551,1728245450378,-500.0,0.00013972,2]
[339971552,1728245450391,-500.0,0.00013972,2]
[339971553,1728245450403,-415.97099132,0.00013972,2]
[339971554,1728245450413,-500.0,0.00013972,2]
[339971555,1728245450424,-500.0,0.00013972,2]
[339971556,1728245450436,-500.0,0.00013972,2]
[339971557,1728245450446,-500.0,0.00013972,2]
[339971558,1728245450455,-500.0,0.00013972,2]
[339971559,1728245450465,-500.0,0.00013972,2]
[339971560,1728245450476,-642.06,0.00013972,2]
[339971561,1728245450488,-500.0,0.00013972,2]
[339971562,1728245450499,-500.0,0.00013972,2]
[339971563,1728245450509,-500.0,0.00013972,2]
[339971564,1728245450517,-500.0,0.00013972,2]
[339971565,1728245450528,-732.29,0.00013972,2]
[339971566,1728245450538,-455.99407016,0.00013972,2]
[339971567,1728245450550,-678.84,0.00013972,2]
[339971568,1728245450563,-744.55,0.00013972,2]
[339971569,1728245450575,-500.0,0.00013972,2]
[339971570,1728245450586,-500.0,0.00013972,2]
[339971571,1728245450595,-500.0,0.00013972,2]
[339971572,1728245450607,-500.0,0.00013972,2]
[339971573,1728245450617,-500.0,0.00013972,2]
[339971574,1728245450627,-500.0,0.00013972,2]
[339971575,1728245450638,-500.0,0.00013972,2]
[339971576,1728245450648,-611.01443007,0.00013972,2]
[339971577,1728245450659,-500.0,0.00013972,2]
[339971578,1728245450669,-500.0,0.00013972,2]
[339971579,1728245450680,-500.0,0.00013972,2]
[339971580,1728245450692,-500.0,0.00013972,2]
[339971581,1728245450701,-977.67,0.00013972,2]
[339971582,1728245450710,-701.53,0.00013972,2]
[339971583,1728245450721,-500.0,0.00013972,2]
[339971584,1728245450732,-500.0,0.00013972,2]
[339971585,1728245450743,-631.97,0.00013972,2]
[339971586,1728245450755,-500.0,0.00013972,2]
[339971587,1728245450766,-740.81,0.00013972,2]
[339971588,1728245450775,-566.27,0.00013972,2]
[339971589,1728245450784,-1278.33,0.00013972,2]
[339971590,1728245450794,-500.0,0.00013972,2]
[339971591,1728245450803,-500.0,0.00013972,2]
[339971592,1728245450813,-500.0,0.00013972,2]
[339971593,1728245450823,-500.0,0.00013972,2]
[339971594,1728245450832,-500.0,0.00013972,2]
[339971595,1728245450842,-711.1,0.00013972,2]
[339971596,1728245450851,-500.0,0.00013972,2]
[339971597,1728245450861,-500.0,0.00013972,2]
[339971598,1728245450873,-500.0,0.00013972,2]
[339971599,1728245450885,-500.0,0.00013972,2]
[339971600,1728245450894,-500.0,0.00013972,2]
[339971601,1728245450904,-500.0,0.00013972,2]
[339971602,1728245450914,-500.0,0.00013972,2]
[339971603,1728245450925,-519.89694902,0.00013972,2]
[339971604,1728245450936,-500.0,0.00013972,2]
[339971605,1728245450946,-500.0,0.00013972,2]
[339971606,1728245450957,-1687.43,0.00013972,2]
[339971607,1728245450967,-500.0,0.00013972,2]